[Event "4th ChessMates Murmansk 2020"]
[Site "Murmansk"]
[Date "2020.03.14"]
[Round "3.6"]
[White "Myskovski, Deniss"]
[Black "Solovyev, Vladislav B."]
[Result "0-1"]
[ECO "C50"]
[WhiteElo "1205"]
[BlackElo "1410"]
[Annotator "NA RC"]
[PlyCount "96"]
[EventDate "2020.03.13"]
[EventType "team-tourn"]
[EventCountry "RUS"]
[SourceTitle "playchess.com"]
[Source "ChessBase"]
[SourceQuality "1"]
[TimeControl "5400+30"]

1. e4 {[%emt 0:00:00]} e5 {[%emt 0:00:00]} 2. Bc4 {[%emt 0:00:00]} Nc6 {[%emt 0:00:00]} 3. Nf3 {[%emt 0:00:00]} Bc5 {[%emt 0:00:00]} 4. Nc3 {[%emt 0:00:12]} d6 {[%emt 0:00:04]} 5. h3 {[%emt 0:00:37]} Nf6 {[%emt 0:00:05]} 6. d3 {[%emt 0:00:19]} Be6 {[%emt 0:00:07]} 7. Bg5 {[%emt 0:00:53]} h6 {[%emt 0:00:09]} 8. Bxf6 {[%emt 0:00:30]} Qxf6 {[%emt 0:00:11]} 9. Nd5 {[%emt 0:00:21]} Bxd5 {[%emt 0:00:42]} 10. Bxd5 {[%emt 0:00:26]} Nd4 {[%emt 0:00:44]} 11. O-O {[%emt 0:03:10]} Nxf3+ {[%emt 0:00:38]} 12. Qxf3 {[%emt 0:00:06]} Qxf3 {[%emt 0:00:05]} 13. gxf3 {[%emt 0:00:06]} c6 {[%emt 0:00:04]} 14. Bb3 {[%emt 0:00:16]} g5 {[%emt 0:00:34]} 15. Kg2 {[%emt 0:01:31]} Ke7 {[%emt 0:00:14]} 16. Rh1 {[%emt 0:00:52]} Rag8 {[%emt 0:10:05]} 17. Rag1 {[%emt 0:10:14]} Rg6 {[%emt 0:01:51]} 18. Kf1 {[%emt 0:01:46]} Rhg8 {[%emt 0:00:14]} 19. Rg2 {[%emt 0:03:38]} b5 {[%emt 0:00:26]} 20. c3 {[%emt 0:03:11]} a5 {[%emt 0:00:37]} 21. Bc2 {[%emt 0:08:23]} b4 {[%emt 0:01:07]} 22. c4 {[%emt 0:00:32]} Bd4 {[%emt 0:00:26]} 23. b3 {[%emt 0:00:18]} Rf6 {[%emt 0:00:26]} 24. Bd1 {[%emt 0:03:00]} d5 {[%emt 0:01:02]} 25. Rhh2 {[%emt 0:09:32]} dxc4 {[%emt 0:00:20]} 26. bxc4 {[%emt 0:02:09]} Ra8 {[%emt 0:00:04]} 27. h4 {[%emt 0:02:30]} gxh4 {[%emt 0:00:19]} 28. Rxh4 {[%emt 0:00:09]} a4 {[%emt 0:00:06]} 29. Rg7 {[%emt 0:00:32]} b3 {[%emt 0:00:21]} 30. a3 {[%emt 0:04:06]} b2 {[%emt 0:00:41]} 31. Bc2 {[%emt 0:00:32]} Rxf3 {[%emt 0:00:17]} 32. Rh2 {[%emt 0:01:01]} Rb8 {[%emt 0:00:06]} 33. Ke2 {[%emt 0:01:36]} Rf6 {[%emt 0:00:29]} 34. Rg1 {[%emt 0:00:54]} c5 {[%emt 0:00:31]} 35. Rb1 {[%emt 0:02:14]} Rfb6 {[%emt 0:02:13]} 36. Rh3 {[%emt 0:04:53]} Rb3 {[%emt 0:01:30]} 37. Rxh6 {[%emt 0:03:32]} Rxa3 {[%emt 0:00:16]} 38. Ra6 {[%emt 0:00:35]} Rc3 {[%emt 0:00:13]} 39. Ra7+ {[%emt 0:02:37]} Kf8 {[%emt 0:00:15]} 40. Kd2 {[%emt 0:03:27]} a3 {[%emt 0:00:17]} 41. Rh1 {[%emt 0:00:36]} Rb6 {[%emt 0:04:17]} 42. Bb1 {[%emt 0:02:31]} Rf6 {[%emt 0:01:06]} 43. Ra8+ {[%emt 0:01:51]} Kg7 {[%emt 0:00:14]} 44. Rg1+ {[%emt 0:00:29]} Rg6 {[%emt 0:00:06]} 45. Rxg6+ {[%emt 0:01:09]} fxg6 {[%emt 0:00:06]} 46. Ra7+ {[%emt 0:00:40]} Kh6 {[%emt 0:00:05]} 47. Ba2 {[%emt 0:00:38]} Rc1 {[%emt 0:00:43]} 48. Rxa3 {[%emt 0:00:21]} b1=Q {[%emt 0:00:08]} 0-1

[Event "4th ChessMates Murmansk 2020"]
[Site "Murmansk"]
[Date "2020.03.14"]
[Round "3.7"]
[White "Iarovoi, Dmitrii"]
[Black "Blokhin, Sofia"]
[Result "0-1"]
[ECO "B40"]
[WhiteElo "1346"]
[BlackElo "1854"]
[Annotator "NA RC"]
[PlyCount "56"]
[EventDate "2020.03.13"]
[EventType "team-tourn"]
[EventCountry "RUS"]
[SourceTitle "playchess.com"]
[Source "ChessBase"]
[SourceQuality "1"]
[TimeControl "5400+30"]

{[%evp 8,56,22,17,16,18,10,0,12,-15,21,1,36,14,16,21,46,21,25,-6,-5,-45,-73,-61,-22,-386,-372,-466,-489,-528,-552,-569,32767,-573,32767,-583,32767,-572,32767,-573,-581,-602,-602,-625,-570,-668,-631,-717,-629,-733,-656]} 1. e4 {[%emt 0:00:00]} c5 {[%emt 0:00:00]} 2. Nf3 {[%emt 0:00:00]} e6 {[%emt 0:00:00]} 3. c3 {[%emt 0:00:00]} Nc6 {[%emt 0:00:00]} 4. Bb5 {[%emt 0:00:08]} a6 {[%emt 0:00:55]} 5. Bxc6 {[%emt 0:00:08]} bxc6 {[%emt 0:00:11]} 6. O-O {[%emt 0:00:13] B30: Sicilian: 2...Nc6 3 Bb5, lines without ...g6.} d5 {[%emt 0:00:58]} 7. e5 {[%emt 0:00:05]} Ne7 {[%emt 0:00:53]} 8. d4 {[%emt 0:01:08]} Ng6 {[%emt 0:01:37]} 9. Be3 {[%emt 0:01:45]} cxd4 {[%emt 0:00:21]} 10. cxd4 {[%emt 0:00:05]} Be7 {[%emt 0:00:24] [#]} 11. Qc2 $146 {[%emt 0:00:40]} ({Predecessor:} 11. Nbd2 O-O 12. Rc1 Qb6 13. Nb3 a5 14. Qc2 Ba6 15. Rfe1 Rab8 16. Rb1 Bc4 17. Nc5 Bxa2 {0-1 (44) Calvo Nobrega,J-Correa Hernandez,S (1899) Tenerife 2001}) 11... Bd7 {[%emt 0:00:32]} 12. Nbd2 {[%emt 0:00:19]} O-O {[%emt 0:01:23]} 13. a3 {[%emt 0:00:55]} Rb8 {[%emt 0:01:37]} 14. Ne1 {[%emt 0:02:23] [#]} c5 $1 {[%emt 0:02:52]} 15. dxc5 {[%emt 0:01:23]} Bb5 {[%emt 0:00:29]} 16. Nd3 $2 {[%emt 0:00:28]} (16. Ndf3 $1 $11) 16... d4 {[%emt 0:00:46]} 17. Nc4 {[%emt 0:22:11]} dxe3 {[%emt 0:01:06]} 18. fxe3 {[%emt 0:01:23]} Qd5 {[%emt 0:01:33]} 19. b3 {[%emt 0:01:51]} Bxc5 {[%emt 0:00:35]} 20. Rae1 {[%emt 0:02:27]} Ba7 {[%emt 0:02:15]} 21. Ndb2 {[%emt 0:00:09]} Bxc4 22. Nxc4 Nxe5 {[%emt 0:01:35]} 23. Nxe5 {[%emt 0:00:56]} Qxe5 {[%emt 0:00:09]} 24. Kh1 {[%emt 0:00:09]} Rbc8 {[%emt 0:00:25]} 25. Qe2 {[%emt 0:00:49]} Qb5 {[%emt 0:00:39]} 26. Qg4 {[%emt 0:00:35] [#]} Bxe3 $1 {[%emt 0:00:59] Back Rank} 27. Rf3 {[%emt 0:00:22]} Bh6 {[%emt 0:01:56]} 28. Rh3 {[%emt 0:00:14]} Qg5 $19 {[%emt 0:00:33]} 0-1

[Event "4th ChessMates Murmansk 2020"]
[Site "Murmansk"]
[Date "2020.03.14"]
[Round "3.8"]
[White "Smirnova, Jekaterina"]
[Black "Pereverzev, Valerii"]
[Result "1-0"]
[ECO "A18"]
[WhiteElo "1439"]
[BlackElo "1379"]
[Annotator "NA RC"]
[PlyCount "25"]
[EventDate "2020.03.13"]
[EventType "team-tourn"]
[EventCountry "RUS"]
[SourceTitle "playchess.com"]
[Source "ChessBase"]
[SourceQuality "1"]
[TimeControl "5400+30"]

1. c4 {[%emt 0:00:00]} e6 {[%emt 0:03:46]} 2. Nc3 {[%emt 0:00:05]} Nf6 {[%emt 0:00:11]} 3. e4 {[%emt 0:01:21]} d5 {[%emt 0:00:10]} 4. cxd5 {[%emt 0:01:04]} exd5 {[%emt 0:00:23]} 5. exd5 {[%emt 0:05:43]} Nxd5 {[%emt 0:00:13]} 6. Bc4 {[%emt 0:03:07]} Nxc3 {[%emt 0:02:36]} 7. bxc3 {[%emt 0:00:27]} c5 {[%emt 0:00:52]} 8. Nf3 {[%emt 0:01:19]} Be7 {[%emt 0:00:22]} 9. O-O {[%emt 0:01:04]} O-O {[%emt 0:00:15]} 10. Ne5 {[%emt 0:02:07]} Bf6 {[%emt 0:01:19]} 11. Re1 {[%emt 0:08:13]} Qc7 {[%emt 0:00:11]} 12. Nxf7 {[%emt 0:19:12]} Rxf7 {[%emt 0:00:11]} 13. Re8# {[%emt 0:00:07]} 1-0

[Event "4th ChessMates Murmansk 2020"]
[Site "Murmansk"]
[Date "2020.03.14"]
[Round "3.16"]
[White "Kien, Clovis"]
[Black "Morar, Kirill"]
[Result "1/2-1/2"]
[ECO "D91"]
[WhiteElo "1765"]
[BlackElo "1271"]
[Annotator "NA RC"]
[PlyCount "64"]
[EventDate "2020.03.13"]
[EventType "team-tourn"]
[EventCountry "RUS"]
[SourceTitle "playchess.com"]
[Source "ChessBase"]
[SourceQuality "1"]
[TimeControl "5400+30"]

1. d4 {[%emt 0:00:24]} Nf6 {[%emt 0:00:00]} 2. c4 {[%emt 0:00:09]} g6 {[%emt 0:00:00]} 3. Nc3 {[%emt 0:00:06]} d5 {[%emt 0:00:00]} 4. Nf3 {[%emt 0:00:35]} Bg7 {[%emt 0:00:00]} 5. Bg5 {[%emt 0:00:08]} Ne4 {[%emt 0:09:42]} 6. cxd5 {[%emt 0:00:27]} Nxc3 {[%emt 0:00:10]} 7. bxc3 {[%emt 0:00:47]} Qxd5 {[%emt 0:00:11]} 8. h3 {[%emt 0:21:32]} Qa5 {[%emt 0:06:26]} 9. Qd2 {[%emt 0:01:41]} c5 {[%emt 0:00:37]} 10. e3 {[%emt 0:04:29]} Nc6 {[%emt 0:01:25]} 11. Be2 {[%emt 0:00:57]} Be6 {[%emt 0:14:51]} 12. O-O {[%emt 0:02:46]} Bd5 {[%emt 0:00:30]} 13. Qc2 {[%emt 0:03:53]} cxd4 {[%emt 0:03:46]} 14. cxd4 {[%emt 0:00:55]} Bxf3 {[%emt 0:04:30]} 15. Bxf3 {[%emt 0:00:51]} Nxd4 {[%emt 0:11:51]} 16. exd4 {[%emt 0:01:19]} Qxg5 {[%emt 0:00:27]} 17. Bxb7 {[%emt 0:05:53]} Rd8 {[%emt 0:02:20]} 18. Qc7 {[%emt 0:08:05]} O-O {[%emt 0:01:19]} 19. Rae1 {[%emt 0:06:38]} e6 {[%emt 0:01:36]} 20. d5 {[%emt 0:00:50]} exd5 {[%emt 0:00:33]} 21. Re7 {[%emt 0:02:58]} Bf6 {[%emt 0:01:52]} 22. Rd7 {[%emt 0:00:19]} Be5 {[%emt 0:03:38]} 23. Qc6 {[%emt 0:01:26]} Rxd7 {[%emt 0:00:35]} 24. Qxd7 {[%emt 0:00:04]} Rd8 {[%emt 0:00:27]} 25. Qb5 {[%emt 0:08:27]} d4 {[%emt 0:06:32]} 26. Qa4 {[%emt 0:08:38]} a5 {[%emt 0:04:07]} 27. Kh1 {[%emt 0:02:24]} Bf4 {[%emt 0:11:07]} 28. Rd1 {[%emt 0:04:09]} Bd2 {[%emt 0:02:00]} 29. Qc4 {[%emt 0:00:25]} Bc3 {[%emt 0:00:43]} 30. Rd3 {[%emt 0:00:40]} Qc1+ {[%emt 0:01:59]} 31. Kh2 {[%emt 0:00:02]} Qf4+ {[%emt 0:00:18]} 32. Kg1 {[%emt 0:00:10]} Qc1+ {[%emt 0:00:05]} 1/2-1/2

[Event "4th ChessMates Murmansk 2020"]
[Site "Murmansk"]
[Date "2020.03.14"]
[Round "3.18"]
[White "Fougerat, Emma"]
[Black "Khon, Ilya"]
[Result "1-0"]
[ECO "A13"]
[WhiteElo "1668"]
[BlackElo "1223"]
[Annotator "NA RC"]
[PlyCount "55"]
[EventDate "2020.03.13"]
[EventType "team-tourn"]
[EventCountry "RUS"]
[SourceTitle "playchess.com"]
[Source "ChessBase"]
[SourceQuality "1"]
[TimeControl "5400+30"]

1. c4 {[%emt 0:00:00]} e6 {[%emt 0:00:00]} 2. g3 {[%emt 0:00:31]} d5 {[%emt 0:00:55]} 3. Bg2 {[%emt 0:00:23]} Nf6 {[%emt 0:05:54]} 4. Nf3 {[%emt 0:00:52]} c5 {[%emt 0:00:38]} 5. cxd5 {[%emt 0:02:12]} exd5 {[%emt 0:02:59]} 6. d4 {[%emt 0:01:10]} h6 {[%emt 0:16:52]} 7. dxc5 {[%emt 0:06:46]} Bxc5 {[%emt 0:00:55]} 8. O-O {[%emt 0:00:40]} O-O {[%emt 0:00:14]} 9. a3 {[%emt 0:03:40]} Be6 {[%emt 0:07:19]} 10. b4 {[%emt 0:01:29]} Bb6 {[%emt 0:00:13]} 11. Bb2 {[%emt 0:01:24]} Nc6 {[%emt 0:11:35]} 12. Nbd2 {[%emt 0:05:48]} Qe7 {[%emt 0:03:30]} 13. Nb3 {[%emt 0:01:54]} Ne4 {[%emt 0:00:38]} 14. Nbd4 {[%emt 0:03:33]} Rfd8 {[%emt 0:06:14]} 15. Rc1 {[%emt 0:04:15]} a6 {[%emt 0:08:36]} 16. Nxc6 {[%emt 0:12:21]} bxc6 {[%emt 0:00:40]} 17. Rxc6 {[%emt 0:01:29]} Ba7 {[%emt 0:00:45]} 18. e3 {[%emt 0:03:18]} Qb7 {[%emt 0:08:32]} 19. Rc1 {[%emt 0:04:18]} Rac8 {[%emt 0:00:50]} 20. Nd4 {[%emt 0:01:57]} Rxc1 {[%emt 0:03:50]} 21. Qxc1 {[%emt 0:03:37]} Rc8 {[%emt 0:02:02]} 22. Qa1 {[%emt 0:02:32]} Nd2 {[%emt 0:09:17]} 23. Rd1 {[%emt 0:03:24]} Bxd4 {[%emt 0:00:52]} 24. Bxd4 {[%emt 0:00:28]} Nb3 {[%emt 0:00:17]} 25. Qb2 {[%emt 0:00:41]} Nxd4 {[%emt 0:00:54]} 26. Qxd4 {[%emt 0:00:22]} Bg4 {[%emt 0:01:24]} 27. Qxg4 {[%emt 0:02:53]} Rc3 {[%emt 0:04:07]} 28. Bxd5 {[%emt 0:01:18]} 1-0

[Event "4th ChessMates Murmansk 2020"]
[Site "Murmansk"]
[Date "2020.03.14"]
[Round "3.19"]
[White "Yatchenko, Leonid"]
[Black "Matsumura, Cocoro"]
[Result "1/2-1/2"]
[ECO "B53"]
[WhiteElo "1705"]
[BlackElo "1896"]
[Annotator "NA RC"]
[PlyCount "108"]
[EventDate "2020.03.13"]
[EventType "team-tourn"]
[EventCountry "RUS"]
[SourceTitle "playchess.com"]
[Source "ChessBase"]
[SourceQuality "1"]
[TimeControl "5400+30"]

{[%evp 14,95,31,24,35,14,39,29,29,32767,38,-6,-6,0,0,-10,11,0,34,20,29,0,-2,-3,-11,0,0,-10,45,35,41,31,39,51,54,20,39,37,29,39,70,0,0,-182,-215,-305,-345,-287,-320,-344,-81,-61,32767,32767,32767,32767,-14,-14,-14,32767,32767,32767,32767,-13,0,-18,-11,-11,-14,-30,-41,-48,-55,-30,-38,-41,-32,-44,32767,32767,32767,0,0,0]} 1. e4 {[%emt 0:00:00]} c5 {[%emt 0:00:00]} 2. Nf3 {[%emt 0:00:00]} d6 {[%emt 0:00:00]} 3. d4 {[%emt 0:00:00]} cxd4 {[%emt 0:00:00]} 4. Qxd4 {[%emt 0:00:00]} Nc6 {[%emt 0:00:00]} 5. Bb5 {[%emt 0:00:00]} Bd7 {[%emt 0:00:05]} 6. Bxc6 {[%emt 0:00:00]} Bxc6 {[%emt 0:00:03]} 7. Nc3 {[%emt 0:00:07]} e5 {[%emt 0:00:08]} 8. Qd3 {[%emt 0:00:08]} h6 {[%emt 0:00:07]} 9. Nd2 {[%emt 0:00:04] B53: Sicilian: 2...d6: Lines with Qxd4.} Nf6 {[%emt 0:00:23]} 10. Nc4 {[%emt 0:00:05]} Be7 {[%emt 0:01:50]} 11. Ne3 {[%emt 0:00:13] [#]} Qd7 $146 {[%emt 0:03:52]} ({Predecessor:} 11... O-O 12. O-O Re8 13. a4 a6 14. a5 b5 15. axb6 Qxb6 16. Ncd5 Nxd5 17. Nxd5 Bxd5 18. Qxd5 {½-½ (18) Zvjaginsev,V (2643)-Navara,D (2708) Rijeka 2010}) 12. Ncd5 {[%emt 0:06:51]} Bxd5 {[%emt 0:00:51]} 13. Nxd5 {[%emt 0:05:38]} Nxd5 {[%emt 0:02:43]} 14. Qxd5 {[%emt 0:00:06]} Rc8 {[%emt 0:00:52]} 15. Qd3 {[%emt 0:00:50]} Rc6 {[%emt 0:07:16]} 16. Be3 {[%emt 0:02:09]} Bg5 {[%emt 0:04:26]} 17. O-O-O {[%emt 0:01:39]} Bxe3+ {[%emt 0:02:52]} 18. Qxe3 {[%emt 0:00:07]} O-O {[%emt 0:00:49]} 19. f3 {[%emt 0:03:17]} Rfc8 {[%emt 0:02:43]} 20. Rd2 {[%emt 0:01:31]} Ra6 {[%emt 0:03:09]} 21. Kb1 {[%emt 0:00:54]} Rc4 {[%emt 0:03:38]} 22. b3 {[%emt 0:03:30]} Qb5 {[%emt 0:07:45]} 23. Rd5 {[%emt 0:01:08]} Qb4 {[%emt 0:00:34]} 24. Qc1 {[%emt 0:00:38]} Rcc6 {[%emt 0:12:39]} 25. Rhd1 {[%emt 0:05:06]} b5 {[%emt 0:17:46]} 26. Qb2 {[%emt 0:04:01]} Ra5 {[%emt 0:12:29]} 27. c3 {[%emt 0:02:13]} ({Better is} 27. Rc1 $16) 27... Rxc3 {[%emt 0:07:23]} 28. Rxd6 $2 {[%emt 0:00:09] [#]} (28. Rc1 $11 {and White has nothing to worry.} Rxc1+ 29. Qxc1) 28... Ra3 $1 {[%emt 0:01:10]} 29. R6d5 {[%emt 0:00:27] [#]} Raxb3 $1 {[%emt 0:01:01]} 30. axb3 {[%emt 0:00:40]} Rxb3 {[%emt 0:00:01]} 31. R1d2 {[%emt 0:00:31]} ({Much worse is} 31. Rd8+ Kh7) 31... a5 $2 {[%emt 0:02:35]} (31... Rxb2+ $19 32. Rxb2 Qe1+ 33. Ka2 b4 34. Rxe5 Qc3 35. Re8+ Kh7) 32. Qxb3 {[%emt 0:00:04]} ({Don't blunder} 32. Rd8+ $2 Kh7 $19) 32... Qxb3+ {[%emt 0:00:06]} 33. Rb2 {[%emt 0:00:04]} Qc4 {[%emt 0:00:32]} 34. Rdxb5 a4 {[%emt 0:01:30]} 35. Rb8+ {[%emt 0:04:09]} Kh7 {[%emt 0:00:03]} 36. Rc2 {[%emt 0:00:23]} Qd3 {[%emt 0:01:09]} 37. Rbc8 {[%emt 0:00:11]} Qb3+ {[%emt 0:00:49]} 38. Rb2 {[%emt 0:00:54]} Qd3+ {[%emt 0:01:09]} 39. Ka2 {[%emt 0:00:12]} Kg6 {[%emt 0:01:24]} 40. Rc6+ {[%emt 0:01:20]} Kg5 {[%emt 0:01:07]} 41. Rc7 {[%emt 0:00:14]} h5 {[%emt 0:00:26]} 42. h3 {[%emt 0:00:54]} Kh4 {[%emt 0:01:10]} 43. Rc6 {[%emt 0:03:03]} Kg3 {[%emt 0:01:24]} 44. Rc7 {[%emt 0:00:44]} g5 {[%emt 0:00:44]} 45. Rc8 {[%emt 0:00:04]} f5 {[%emt 0:00:40]} 46. exf5 {[%emt 0:00:22]} Qxf5 {[%emt 0:00:05]} 47. Rc4 {[%emt 0:00:38]} Qd7 $11 {[%emt 0:00:50]} (47... Qf7 $5 48. Rbc2 $8 {[#]} g4 $1 $11 {[%mdl 512]}) 48. Rcb4 {[%emt 0:00:47]} Qd1 {[%emt 0:00:53]} 49. Re4 {[%emt 0:00:19]} Qd5+ {[%emt 0:00:38]} 50. Ka3 {[%emt 0:00:16]} Qa5 {[%emt 0:00:24]} 51. Rxa4 {[%emt 0:00:21]} Qc3+ {[%emt 0:00:01]} 52. Ka2 {[%emt 0:00:08]} Qc5 {[%emt 0:00:19]} 53. Re4 {[%emt 0:00:32]} Qa5+ {[%emt 0:00:11]} 54. Kb1 {[%emt 0:00:07]} Qd5 {[%emt 0:00:26]} 1/2-1/2

[Event "4th ChessMates Murmansk 2020"]
[Site "Murmansk"]
[Date "2020.03.14"]
[Round "3.20"]
[White "Ider, Bayar"]
[Black "Zaytsev, Egor"]
[Result "1-0"]
[ECO "A44"]
[WhiteElo "1730"]
[BlackElo "1871"]
[Annotator "NA RC"]
[PlyCount "109"]
[EventDate "2020.03.13"]
[EventType "team-tourn"]
[EventCountry "RUS"]
[SourceTitle "playchess.com"]
[Source "ChessBase"]
[SourceQuality "1"]
[TimeControl "5400+30"]

{[%evp 11,106,52,55,51,62,51,65,54,61,38,42,45,50,47,50,36,47,11,12,11,28,13,28,22,37,-9,37,37,59,2,32767,32767,32767,32767,0,-23,-30,-39,40,53,61,61,35,45,41,62,93,-47,144,154,32767,32767,32767,32767,148,149,256,220,243,243,252,245,249,267,318,293,32767,32767,32767,32767,308,272,284,374,459,606,537,485,537,689,736,1162,760,1280,29971,29973,12837,29976,29977,32767,32767,32767,32767,32767,32767,29990,29990]} 1. d4 {[%emt 0:00:00]} c5 {[%emt 0:00:00]} 2. d5 {[%emt 0:00:00]} e5 {[%emt 0:00:00]} 3. e4 {[%emt 0:00:00]} d6 {[%emt 0:00:00]} 4. Bb5+ {[%emt 0:00:02]} Bd7 {[%emt 0:00:18]} 5. Bxd7+ {[%emt 0:00:05]} Nxd7 {[%emt 0:00:09]} 6. c4 {[%emt 0:00:41] A44: Semi-Benoni.} g6 {[%emt 0:00:36]} 7. Nc3 {[%emt 0:00:08]} a6 {[%emt 0:00:13] [#]} 8. a4 $146 {[%emt 0:00:31]} ({Predecessor:} 8. Nh3 Bh6 9. O-O Bxc1 10. Qxc1 Qh4 11. Rb1 Ngf6 12. Qg5 Qxg5 13. Nxg5 h6 14. Nf3 {1-0 (58) Jaeger,A (2149)-Gruzmann,B (2271) Berlin 2005}) 8... Bg7 {[%emt 0:01:44]} 9. Nf3 {[%emt 0:00:51]} Ne7 {[%emt 0:01:39]} 10. Bg5 {[%emt 0:04:07]} h6 {[%emt 0:02:53]} 11. Be3 {[%emt 0:00:12]} O-O {[%emt 0:01:42]} 12. Qd2 {[%emt 0:00:17]} Kh7 {[%emt 0:01:48]} 13. Qc2 {[%emt 0:18:28]} f5 {[%emt 0:10:52]} 14. h4 {[%emt 0:00:09]} Kg8 {[%emt 0:11:01]} 15. a5 {[%emt 0:01:33]} Nf6 {[%emt 0:07:58]} 16. Bd2 {[%emt 0:06:53]} fxe4 {[%emt 0:02:52]} 17. Nxe4 {[%emt 0:00:08]} Nf5 {[%emt 0:00:14]} 18. b4 {[%emt 0:05:45]} Nd4 {[%emt 0:06:46]} 19. Nxd4 {[%emt 0:01:58]} exd4 {[%emt 0:00:12]} 20. O-O {[%emt 0:00:30]} d3 {[%emt 0:14:08]} 21. Qxd3 {[%emt 0:00:08]} Nxe4 {[%emt 0:00:05]} 22. Qxe4 {[%emt 0:00:03]} Bxa1 {[%emt 0:00:41]} 23. Qe6+ {[%emt 0:00:08]} ({Not} 23. Qxg6+ $2 Bg7 $19) (23. Rxa1 $5 {[%cal Re4g6]} Qf6 24. Rf1 $11) 23... Kh7 {[%emt 0:07:59]} 24. Rxa1 {[%emt 0:00:22]} Qf6 {[%emt 0:03:56]} (24... cxb4 $15 25. Bxb4 Qf6 26. Qxf6 Rxf6) 25. Qxf6 {[%emt 0:00:17]} Rxf6 {[%emt 0:00:05]} 26. bxc5 {[%emt 0:00:28]} dxc5 {[%emt 0:00:07]} 27. Be3 {[%emt 0:00:38]} Rc8 {[%emt 0:02:03]} 28. Rb1 {[%emt 0:00:10]} Rc7 {[%emt 0:00:51]} 29. d6 {[%emt 0:01:09]} (29. Kf1 $16) 29... Rxd6 $2 {[%emt 0:10:50]} (29... Rd7 $15 {keeps the upper hand.} 30. Bxc5 Rf4) 30. Bf4 {[%emt 0:00:19]} Rdd7 {[%emt 0:00:08]} 31. Bxc7 {[%emt 0:00:05]} Rxc7 {[%emt 0:00:05]} 32. Rb6 {[%emt 0:00:04]} Kg7 {[%emt 0:00:18]} 33. g4 {[%emt 0:00:31]} g5 {[%emt 0:01:26]} (33... Rd7 $16 34. h5 g5) 34. h5 {[%emt 0:00:21]} Kh7 {[%emt 0:00:06]} 35. Kg2 {[%emt 0:00:05]} Rf7 {[%emt 0:00:28]} 36. Kg3 {[%emt 0:01:40]} Kg7 {[%emt 0:00:38]} 37. f3 {[%emt 0:00:45]} Kh7 {[%emt 0:01:12]} 38. Kf2 {[%emt 0:00:29]} Kg7 {[%emt 0:03:39]} 39. Ke3 {[%emt 0:00:12]} Re7+ {[%emt 0:00:16]} 40. Kd3 {[%emt 0:00:05]} Kh7 {[%emt 0:04:44]} 41. Rd6 {[%emt 0:00:54]} Kg7 {[%emt 0:01:03]} 42. Rd5 {[%emt 0:00:14]} Rc7 {[%emt 0:00:40]} (42... Rf7 {was worth a try.} 43. Ke4 Rf4+ 44. Ke5 Rxc4 45. Rd7+ {[%mdl 64] Double Attack} Kg8 46. Rxb7 Ra4) 43. Ke4 {[%emt 0:00:11]} Re7+ {[%emt 0:02:13]} 44. Re5 {[%emt 0:00:17]} Rc7 {[%emt 0:00:48]} 45. Kd5 {[%emt 0:00:35]} Kf7 {[%emt 0:01:04]} 46. Re6 {[%emt 0:00:48]} Rd7+ {[%emt 0:00:14]} 47. Rd6 {[%emt 0:00:07]} Ke7 {[%emt 0:00:32]} 48. Rxd7+ {[%emt 0:00:16]} Kxd7 {[%emt 0:00:04]} 49. Kxc5 {[%emt 0:00:04]} Kc7 {[%emt 0:00:07]} 50. Kd5 {[%emt 0:01:12]} b6 {[%emt 0:00:11]} 51. axb6+ {[%emt 0:03:36]} Kxb6 {[%emt 0:00:13]} 52. Kd6 {[%emt 0:00:08]} Kb7 {[%emt 0:00:39]} 53. c5 {[%emt 0:00:45]} Kc8 {[%emt 0:01:02]} 54. Kc6 {[%emt 0:00:09]} Kd8 {[%emt 0:00:14]} 55. Kb7 {[%emt 0:00:15]} 1-0

[Event "4th ChessMates Murmansk 2020"]
[Site "Murmansk"]
[Date "2020.03.14"]
[Round "3.24"]
[White "Vetrov, Ivan"]
[Black "Shelezhonkova, Kseniya"]
[Result "1/2-1/2"]
[ECO "D37"]
[WhiteElo "1799"]
[BlackElo "1552"]
[Annotator "NA RC"]
[PlyCount "61"]
[EventDate "2020.03.13"]
[EventType "team-tourn"]
[EventCountry "RUS"]
[SourceTitle "playchess.com"]
[Source "ChessBase"]
[SourceQuality "1"]
[TimeControl "5400+30"]

1. d4 {[%emt 0:00:00]} d5 {[%emt 0:00:00]} 2. c4 {[%emt 0:00:00]} e6 {[%emt 0:00:00]} 3. Nc3 {[%emt 0:00:00]} Nf6 {[%emt 0:00:00]} 4. Nf3 {[%emt 0:00:24]} Nbd7 {[%emt 0:00:24]} 5. cxd5 {[%emt 0:02:48]} exd5 {[%emt 0:00:23]} 6. Bg5 {[%emt 0:00:15]} c6 {[%emt 0:00:29]} 7. e3 {[%emt 0:01:08]} Be7 {[%emt 0:00:14]} 8. Bd3 {[%emt 0:02:05]} O-O {[%emt 0:01:33]} 9. Qc2 {[%emt 0:02:47]} Re8 {[%emt 0:01:28]} 10. O-O {[%emt 0:14:09]} Nf8 {[%emt 0:06:14]} 11. Ne5 {[%emt 0:01:33]} Ne4 {[%emt 0:14:39]} 12. Bf4 {[%emt 0:08:26]} Nxc3 {[%emt 0:06:58]} 13. bxc3 {[%emt 0:00:40]} f6 {[%emt 0:00:40]} 14. Nf3 {[%emt 0:00:35]} Bd6 {[%emt 0:02:07]} 15. Bxd6 {[%emt 0:02:16]} Qxd6 {[%emt 0:00:04]} 16. c4 {[%emt 0:00:18]} dxc4 {[%emt 0:05:04]} 17. Bxc4+ {[%emt 0:00:03]} Be6 {[%emt 0:00:08]} 18. Rab1 {[%emt 0:00:34]} Re7 {[%emt 0:04:04]} 19. Rfc1 {[%emt 0:03:43]} Bxc4 {[%emt 0:01:53]} 20. Qxc4+ {[%emt 0:00:59]} Qe6 {[%emt 0:00:22]} 21. a4 {[%emt 0:01:20]} Qxc4 {[%emt 0:02:02]} 22. Rxc4 {[%emt 0:00:04]} Rd8 {[%emt 0:00:19]} 23. Nd2 {[%emt 0:16:37]} Ne6 {[%emt 0:02:35]} 24. Nb3 {[%emt 0:03:05]} Kf7 {[%emt 0:07:02]} 25. g3 {[%emt 0:01:59]} Ng5 {[%emt 0:06:24]} 26. Rb4 {[%emt 0:07:06]} Rd5 {[%emt 0:08:16]} 27. Nc5 {[%emt 0:13:29]} b6 {[%emt 0:02:02]} 28. Nb3 {[%emt 0:05:40]} Ne4 {[%emt 0:11:01]} 29. Rc1 {[%emt 0:05:23]} c5 {[%emt 0:00:56]} 30. dxc5 {[%emt 0:01:33]} Nxc5 {[%emt 0:00:25]} 31. Nxc5 {[%emt 0:02:36]} 1/2-1/2